Workbook

Sheet Summary
B2: PowerStream Inc
B3: Renewable Generation Connection Rate Protection
B4: Compensation Amounts under Ontario Regulation 330/09
B6: Summary of Revenue Requirement for Recovery in 2016 - 2026
B7: RGC Eligible Investments
C10: Board Approved RR Basis | F10: Proposed for Recoveries - TEST YEARS
C11: 2013 (EB-2012-0161) | D11: 2014 (EB-2013-0166) | E11: 2015 (EB-2014-0608) | F11: 2016 | G11: 2017 | H11: 2018 | I11: 2019 | J11: 2020 | K11: =+J11+1 -> 2021 | L11: =+K11+1 -> 2022 | M11: 2023 | N11: 2024 | O11: 2025 | P11: 2026 | Q11: 2027
B12: 2011 & Prior RGC Investmentt | C12: 162683.8382 | D12: 67769.11036 | E12: 53805.4653
B13: 2012 RGC Investment | D13: 146069.6232 | E13: 61131.51962
B14: 2013 RGC Investment | E14: 146352.6744
B15: 2014 RGC Investment | F15: $150,269(1)
B16: 2015 RGC Investment | F16: $4,208 (2)
B17: 2010-2026 RGC Investment | F17: 272792.2237 | G17: 271059.5814 | H17: 266079.1936 | I17: 260516.6398 | J17: 256894.316 | K17: ='Revenue Requirement'!Z26 -> 252940.2862 | L17: ='Revenue Requirement'!AB26 -> 248681.0869 | M17: ='Revenue Requirement'!AD26 -> 244141.1315 | N17: ='Revenue Requirement'!AF26 -> 239342.8807 | O17: ='Revenue Requirement'!AH26 -> 234306.998 | P17: ='Revenue Requirement'!AJ26 -> 229052.4939 | Q17: ='Revenue Requirement'!AL26 -> 223596.8583
C18: =SUM(C12:C17) -> 162683.8382 | D18: =SUM(D12:D17) -> 213838.7336 | E18: =SUM(E12:E17) -> 261289.6594 | F18: 427270 | G18: =SUM(G12:G17) -> 271059.5814 | H18: =SUM(H12:H17) -> 266079.1936 | I18: =SUM(I12:I17) -> 260516.6398 | J18: =SUM(J12:J17) -> 256894.316 | K18: =SUM(K12:K17) -> 252940.2862 | L18: =SUM(L12:L17) -> 248681.0869 | M18: 244141.1315 | N18: 239342.8807 | O18: 234306.998 | P18: 229052.4939 | Q18: =SUM(Q12:Q17) -> 223596.8583
B20: NOTES:
A21: (1) | B21: Revenue Requirement for 2014 and 2015
A22: (2) | B22: Revenue Requirement for 2015

Sheet Revenue Requirement
B2: PowerStream Inc
B3: Renewable Generation Connection Rate Protection
B4: Compensation Amounts under Ontario Regulation 330/09
C6: 2010 | E6: 2011 | G6: 2012 | I6: 2013 | K6: 2014 | M6: 2015 | O6: 2016 | Q6: 2017 | S6: 2018 | U6: 2019 | W6: 2020 | Y6: =+W6+1 -> 2021 | AA6: =+Y6+1 -> 2022 | AC6: =+AA6+1 -> 2023 | AE6: =+AC6+1 -> 2024 | AG6: =+AE6+1 -> 2025 | AI6: =+AG6+1 -> 2026 | AK6: =+AI6+1 -> 2027
B7: Net Fixed Assets | D7: 40059.65833 | F7: 275565.7051 | H7: 747920.5063 | J7: 1357994.434 | L7: 2165791.351 | N7: 2619173.981 | P7: 2576445.217 | R7: 2501089.327 | T7: 2394160.844 | V7: 2288878.72 | X7: 2184419.638 | Z7: ='Avg Nt Fix Ass &UCC'!O109 -> 2079960.555 | AB7: ='Avg Nt Fix Ass &UCC'!P109 -> 1975501.473 | AD7: ='Avg Nt Fix Ass &UCC'!Q109 -> 1871042.391 | AF7: ='Avg Nt Fix Ass &UCC'!R109 -> 1766583.309 | AH7: ='Avg Nt Fix Ass &UCC'!S109 -> 1662124.227 | AJ7: ='Avg Nt Fix Ass &UCC'!T109 -> 1557665.144 | AL7: ='Avg Nt Fix Ass &UCC'!U109 -> 1453206.062
B8: OM&A | C8: =D22 -> 0 | E8: =F22 -> 0 | G8: =H22 -> 0 | I8: =J22 -> 0 | K8: =L22 -> 0 | M8: =N22 -> 0 | O8: =P22 -> 0 | Q8: =R22 -> 0 | S8: =T22 -> 0 | U8: =V22 -> 0 | W8: =X22 -> 0 | Y8: =Z22 -> 0 | AA8: =AB22 -> 0 | AC8: =AD22 -> 0 | AE8: =AF22 -> 0 | AG8: =AH22 -> 0 | AI8: =AJ22 -> 0 | AK8: =AL22 -> 0
B9: WCA | C9: 0.13 | D9: =C8*C9 -> 0 | E9: 0.13 | F9: =E8*E9 -> 0 | G9: =E9 -> 0.13 | H9: =G8*G9 -> 0 | I9: =E9 -> 0.13 | J9: =I8*I9 -> 0 | K9: =E9 -> 0.13 | L9: =K8*K9 -> 0 | M9: =E9 -> 0.13 | N9: =M8*M9 -> 0 | O9: =G9 -> 0.13 | P9: =O8*O9 -> 0 | Q9: =I9 -> 0.13 | R9: =Q8*Q9 -> 0 | S9: =K9 -> 0.13 | T9: =S8*S9 -> 0 | U9: =M9 -> 0.13 | V9: =U8*U9 -> 0 | W9: =O9 -> 0.13 | X9: =W8*W9 -> 0 | Y9: =Q9 -> 0.13 | Z9: =Y8*Y9 -> 0 | AA9: =S9 -> 0.13 | AB9: =AA8*AA9 -> 0 | AC9: =U9 -> 0.13 | AD9: =AC8*AC9 -> 0 | AE9: =W9 -> 0.13 | AF9: =AE8*AE9 -> 0 | AG9: =Y9 -> 0.13 | AH9: =AG8*AG9 -> 0 | AI9: =AA9 -> 0.13 | AJ9: =AI8*AI9 -> 0 | AK9: =AC9 -> 0.13 | AL9: =AK8*AK9 -> 0
B10: Rate Base | D10: =SUM(D7:D9) -> 40059.65833 | F10: =SUM(F7:F9) -> 275565.7051 | H10: =SUM(H7:H9) -> 747920.5063 | J10: =SUM(J7:J9) -> 1357994.434 | L10: =SUM(L7:L9) -> 2165791.351 | N10: =SUM(N7:N9) -> 2619173.981 | P10: =SUM(P7:P9) -> 2576445.217 | R10: =SUM(R7:R9) -> 2501089.327 | T10: =SUM(T7:T9) -> 2394160.844 | V10: =SUM(V7:V9) -> 2288878.72 | X10: =SUM(X7:X9) -> 2184419.638 | Z10: =SUM(Z7:Z9) -> 2079960.555 | AB10: =SUM(AB7:AB9) -> 1975501.473 | AD10: =SUM(AD7:AD9) -> 1871042.391 | AF10: =SUM(AF7:AF9) -> 1766583.309 | AH10: =SUM(AH7:AH9) -> 1662124.227 | AJ10: =SUM(AJ7:AJ9) -> 1557665.144 | AL10: =SUM(AL7:AL9) -> 1453206.062
B13: Deemed ST Debt | C13: 0.04 | D13: =D10*C13 -> 1602.386333 | E13: =C13 -> 0.04 | F13: =F10*E13 -> 11022.62821 | G13: 0.04 | H13: =H10*G13 -> 29916.82025 | I13: 0.04 | J13: =J10*I13 -> 54319.77738 | K13: =I13 -> 0.04 | L13: =L10*K13 -> 86631.65406 | M13: =K13 -> 0.04 | N13: =N10*M13 -> 104766.9592 | O13: =M13 -> 0.04 | P13: =P10*O13 -> 103057.8087 | Q13: =O13 -> 0.04 | R13: =R10*Q13 -> 100043.5731 | S13: =Q13 -> 0.04 | T13: =T10*S13 -> 95766.43376 | U13: =S13 -> 0.04 | V13: =V10*U13 -> 91555.14879 | W13: =U13 -> 0.04 | X13: =X10*W13 -> 87376.78551 | Y13: =W13 -> 0.04 | Z13: =Z10*Y13 -> 83198.42222 | AA13: =Y13 -> 0.04 | AB13: =AB10*AA13 -> 79020.05893 | AC13: =AA13 -> 0.04 | AD13: =AD10*AC13 -> 74841.69564 | AE13: =AC13 -> 0.04 | AF13: =AF10*AE13 -> 70663.33235 | AG13: =AE13 -> 0.04 | AH13: =AH10*AG13 -> 66484.96906 | AI13: =AG13 -> 0.04 | AJ13: =AJ10*AI13 -> 62306.60578 | AK13: =AI13 -> 0.04 | AL13: =AL10*AK13 -> 58128.24249
B14: Deemed LT Debt | C14: 0.56 | D14: =D10*C14 -> 22433.40867 | E14: 0.56 | F14: =F10*E14 -> 154316.7949 | G14: 0.56 | H14: =H10*G14 -> 418835.4835 | I14: 0.56 | J14: =J10*I14 -> 760476.8833 | K14: =I14 -> 0.56 | L14: =L10*K14 -> 1212843.157 | M14: =K14 -> 0.56 | N14: =N10*M14 -> 1466737.429 | O14: =M14 -> 0.56 | P14: =P10*O14 -> 1442809.322 | Q14: =O14 -> 0.56 | R14: =R10*Q14 -> 1400610.023 | S14: =Q14 -> 0.56 | T14: =T10*S14 -> 1340730.073 | U14: =S14 -> 0.56 | V14: =V10*U14 -> 1281772.083 | W14: =U14 -> 0.56 | X14: =X10*W14 -> 1223274.997 | Y14: =W14 -> 0.56 | Z14: =Z10*Y14 -> 1164777.911 | AA14: =Y14 -> 0.56 | AB14: =AB10*AA14 -> 1106280.825 | AC14: =AA14 -> 0.56 | AD14: =AD10*AC14 -> 1047783.739 | AE14: =AC14 -> 0.56 | AF14: =AF10*AE14 -> 989286.6529 | AG14: =AE14 -> 0.56 | AH14: =AH10*AG14 -> 930789.5669 | AI14: =AG14 -> 0.56 | AJ14: =AJ10*AI14 -> 872292.4809 | AK14: =AI14 -> 0.56 | AL14: =AL10*AK14 -> 813795.3948
B15: Deemed Equity | C15: 0.4 | D15: =D10*C15 -> 16023.86333 | E15: =C15 -> 0.4 | F15: =F10*E15 -> 110226.2821 | G15: =E15 -> 0.4 | H15: =H10*G15 -> 299168.2025 | I15: 0.4 | J15: =J10*I15 -> 543197.7738 | K15: =I15 -> 0.4 | L15: =L10*K15 -> 866316.5406 | M15: =K15 -> 0.4 | N15: =N10*M15 -> 1047669.592 | O15: =M15 -> 0.4 | P15: =P10*O15 -> 1030578.087 | Q15: =O15 -> 0.4 | R15: =R10*Q15 -> 1000435.731 | S15: =Q15 -> 0.4 | T15: =T10*S15 -> 957664.3376 | U15: =S15 -> 0.4 | V15: =V10*U15 -> 915551.4879 | W15: =U15 -> 0.4 | X15: =X10*W15 -> 873767.8551 | Y15: =W15 -> 0.4 | Z15: =Z10*Y15 -> 831984.2222 | AA15: =Y15 -> 0.4 | AB15: =AB10*AA15 -> 790200.5893 | AC15: =AA15 -> 0.4 | AD15: =AD10*AC15 -> 748416.9564 | AE15: =AC15 -> 0.4 | AF15: =AF10*AE15 -> 706633.3235 | AG15: =AE15 -> 0.4 | AH15: =AH10*AG15 -> 664849.6906 | AI15: =AG15 -> 0.4 | AJ15: =AJ10*AI15 -> 623066.0578 | AK15: =AI15 -> 0.4 | AL15: =AL10*AK15 -> 581282.4249
B17: ST Interest | C17: 0.0133 | D17: 21.31173823 | E17: 0.0133 | F17: 146.6009551 | G17: 0.0133 | H17: 397.8937094 | I17: 0.0208 | J17: 1129.851369 | K17: 0.0208 | L17: 1801.938404 | M17: 0.0208 | N17: 2179.152752 | O17: 0.0216 | P17: 2226.048668 | Q17: 0.03 | R17: 3001.307192 | S17: 0.03 | T17: 2872.993013 | U17: 0.03 | V17: 2746.654464 | W17: 0.03 | X17: =W17*X13 -> 2621.303565 | Y17: 0.03 | Z17: =Y17*Z13 -> 2495.952667 | AA17: 0.03 | AB17: =AA17*AB13 -> 2370.601768 | AC17: 0.03 | AD17: =AC17*AD13 -> 2245.250869 | AE17: 0.03 | AF17: =AE17*AF13 -> 2119.899971 | AG17: 0.03 | AH17: =AG17*AH13 -> 1994.549072 | AI17: 0.03 | AJ17: =AI17*AJ13 -> 1869.198173 | AK17: 0.03 | AL17: =AK17*AL13 -> 1743.847275
B18: LT Interest | C18: 0.0589 | D18: 1321.32777 | E18: 0.0589 | F18: 9089.259218 | G18: 0.0589 | H18: 24669.40998 | I18: 0.0415 | J18: 31559.79066 | K18: 0.0415 | L18: 50332.99101 | M18: 0.0415 | N18: 60869.60331 | O18: 0.03958768743 | P18: 57117.48444 | Q18: 0.0400583755 | R18: 56106.16223 | S18: 0.04028217087 | T18: 54007.51788 | U18: 0.04028217087 | V18: 51632.56207 | W18: 0.04028217087 | X18: =W18*X14 -> 49276.17245 | Y18: 0.04028217087 | Z18: =Y18*Z14 -> 46919.78284 | AA18: 0.04028217087 | AB18: =AA18*AB14 -> 44563.39322 | AC18: 0.04028217087 | AD18: =AC18*AD14 -> 42207.00361 | AE18: 0.04028217087 | AF18: =AE18*AF14 -> 39850.61399 | AG18: 0.04028217087 | AH18: =AG18*AH14 -> 37494.22438 | AI18: 0.04028217087 | AJ18: =AI18*AJ14 -> 35137.83476 | AK18: 0.04028217087 | AL18: =AK18*AL14 -> 32781.44515
B19: ROE | C19: 0.0801 | D19: 1283.511453 | E19: 0.0801 | F19: 8829.125193 | G19: 0.0801 | H19: 23963.37302 | I19: 0.0893 | J19: 48507.5612 | K19: 0.0893 | L19: 77362.06707 | M19: 0.0893 | N19: 93556.89459 | O19: 0.093 | P19: 95843.76208 | Q19: 0.093 | R19: 93040.52295 | S19: 0.093 | T19: 89062.7834 | U19: 0.093 | V19: 85146.28838 | W19: 0.093 | X19: =W19*X15 -> 81260.41052 | Y19: 0.093 | Z19: =Y19*Z15 -> 77374.53266 | AA19: 0.093 | AB19: =AA19*AB15 -> 73488.6548 | AC19: 0.093 | AD19: =AC19*AD15 -> 69602.77695 | AE19: 0.093 | AF19: =AE19*AF15 -> 65716.89909 | AG19: 0.093 | AH19: =AG19*AH15 -> 61831.02123 | AI19: 0.093 | AJ19: =AI19*AJ15 -> 57945.14337 | AK19: 0.093 | AL19: =AK19*AL15 -> 54059.26551
D20: =SUM(D17:D19) -> 2626.150962 | F20: =SUM(F17:F19) -> 18064.98537 | H20: =SUM(H17:H19) -> 49030.67671 | J20: =SUM(J17:J19) -> 81197.20322 | L20: =SUM(L17:L19) -> 129496.9965 | N20: =SUM(N17:N19) -> 156605.6507 | P20: =SUM(P17:P19) -> 155187.2952 | R20: =SUM(R17:R19) -> 152147.9924 | T20: =SUM(T17:T19) -> 145943.2943 | V20: =SUM(V17:V19) -> 139525.5049 | X20: =SUM(X17:X19) -> 133157.8865 | Z20: =SUM(Z17:Z19) -> 126790.2682 | AB20: =SUM(AB17:AB19) -> 120422.6498 | AD20: =SUM(AD17:AD19) -> 114055.0314 | AF20: =SUM(AF17:AF19) -> 107687.413 | AH20: =SUM(AH17:AH19) -> 101319.7947 | AJ20: =SUM(AJ17:AJ19) -> 94952.17631 | AL20: =SUM(AL17:AL19) -> 88584.55793
B22: OM&A | D22: 0 | F22: 0 | H22: 0 | J22: 0 | L22: 0 | N22: 0 | P22: 0 | R22: 0 | T22: 0 | V22: 0 | X22: 0 | Z22: 0 | AB22: 0 | AD22: 0 | AF22: 0 | AH22: 0 | AJ22: 0 | AL22: 0
B23: Amortization | D23: 1980.683333 | F23: 20336.22306 | H23: 50132.23456 | J23: 73341.63072 | L23: 104658.8364 | N23: 118981.5848 | P23: 109962.2423 | R23: 107751.7988 | T23: 106105.1663 | V23: 104459.0822 | X23: 104459.0822 | Z23: ='Avg Nt Fix Ass &UCC'!O110 -> 104459.0822 | AB23: ='Avg Nt Fix Ass &UCC'!P110 -> 104459.0822 | AD23: ='Avg Nt Fix Ass &UCC'!Q110 -> 104459.0822 | AF23: ='Avg Nt Fix Ass &UCC'!R110 -> 104459.0822 | AH23: ='Avg Nt Fix Ass &UCC'!S110 -> 104459.0822 | AJ23: ='Avg Nt Fix Ass &UCC'!T110 -> 104459.0822 | AL23: ='Avg Nt Fix Ass &UCC'!U110 -> 104459.0822
B24: Grossed-up PILs | D24: -151.7842827 | F24: -10388.3285 | H24: -11375.16768 | J24: 1214.799724 | L24: 3430.716015 | N24: 3106.871753 | P24: 7642.686196 | R24: 11159.79021 | T24: 14030.73302 | V24: 16532.05269 | X24: 19277.34729 | Z24: =PILs!N35 -> 21690.93585 | AB24: =PILs!O35 -> 23799.35486 | AD24: =PILs!P35 -> 25627.01789 | AF24: =PILs!Q35 -> 27196.38542 | AH24: =PILs!R35 -> 28528.12107 | AJ24: =PILs!S35 -> 29641.23542 | AL24: =PILs!T35 -> 30553.21815
B26: Provincial Rate Protection - Revenue Requirement | D26: =SUM(D20:D24) -> 4455.050012 | F26: =SUM(F20:F24) -> 28012.87992 | H26: =SUM(H20:H24) -> 87787.74359 | J26: =SUM(J20:J24) -> 155753.6337 | L26: =SUM(L20:L24) -> 237586.5489 | N26: =SUM(N20:N24) -> 278694.1072 | P26: =SUM(P20:P24) -> 272792.2237 | R26: =SUM(R20:R24) -> 271059.5814 | T26: =SUM(T20:T24) -> 266079.1936 | V26: =SUM(V20:V24) -> 260516.6398 | X26: =SUM(X20:X24) -> 256894.316 | Z26: =SUM(Z20:Z24) -> 252940.2862 | AB26: =SUM(AB20:AB24) -> 248681.0869 | AD26: =SUM(AD20:AD24) -> 244141.1315 | AF26: =SUM(AF20:AF24) -> 239342.8807 | AH26: =SUM(AH20:AH24) -> 234306.998 | AJ26: =SUM(AJ20:AJ24) -> 229052.4939 | AL26: =SUM(AL20:AL24) -> 223596.8583

Sheet PILs
B1: PowerStream Inc
B2: Renewable Generation Connection Rate Protection
B3: Compensation Amounts under Ontario Regulation 330/09
B4: PILs Calculation
C6: 2010 | D6: 2011 | E6: 2012 | F6: 2013 | G6: 2014 | H6: 2015 | I6: 2016 | J6: 2017 | K6: 2018 | L6: 2019 | M6: 2020 | N6: =+M6+1 -> 2021 | O6: =+N6+1 -> 2022 | P6: 2023 | Q6: 2024 | R6: 2025 | S6: 2026 | T6: 2027
B7: INCOME TAX
B8: Net Income | C8: 1283.511453 | D8: 8829.125193 | E8: 23963.37302 | F8: 48507.5612 | G8: 77362.06707 | H8: 93556.89459 | I8: 95843.76208 | J8: 93040.52295 | K8: 89062.7834 | L8: 85146.28838 | M8: 81260.41052 | N8: ='Revenue Requirement'!Z19 -> 77374.53266 | O8: ='Revenue Requirement'!AB19 -> 73488.6548 | P8: ='Revenue Requirement'!AD19 -> 69602.77695 | Q8: ='Revenue Requirement'!AF19 -> 65716.89909 | R8: ='Revenue Requirement'!AH19 -> 61831.02123 | S8: ='Revenue Requirement'!AJ19 -> 57945.14337 | T8: ='Revenue Requirement'!AL19 -> 54059.26551
B9: Amortization | C9: 1980.683333 | D9: 20336.22306 | E9: 50132.23456 | F9: 73341.63072 | G9: 104658.8364 | H9: 118981.5848 | I9: 109962.2423 | J9: 107751.7988 | K9: 106105.1663 | L9: 104459.0822 | M9: 104459.0822 | N9: ='Revenue Requirement'!Z23 -> 104459.0822 | O9: ='Revenue Requirement'!AB23 -> 104459.0822 | P9: ='Revenue Requirement'!AD23 -> 104459.0822 | Q9: ='Revenue Requirement'!AF23 -> 104459.0822 | R9: ='Revenue Requirement'!AH23 -> 104459.0822 | S9: ='Revenue Requirement'!AJ23 -> 104459.0822 | T9: ='Revenue Requirement'!AL23 -> 104459.0822
B10: CCA | C10: -3649.7 | D10: -55549.864 | E10: -105645.601 | F10: -118479.8417 | G10: -172505.5213 | H10: -203921.3068 | I10: -184608.3653 | J10: -169839.6961 | K10: -156252.5204 | L10: -143752.3188 | M10: -132252.1333 | N10: =-'Avg Nt Fix Ass &UCC'!O124-'Avg Nt Fix Ass &UCC'!O138 -> -121671.9626 | O10: =-'Avg Nt Fix Ass &UCC'!P124-'Avg Nt Fix Ass &UCC'!P138 -> -111938.2056 | P10: =-'Avg Nt Fix Ass &UCC'!Q124-'Avg Nt Fix Ass &UCC'!Q138 -> -102983.1492 | Q10: =-'Avg Nt Fix Ass &UCC'!R124-'Avg Nt Fix Ass &UCC'!R138 -> -94744.49722 | R10: =-'Avg Nt Fix Ass &UCC'!S124-'Avg Nt Fix Ass &UCC'!S138 -> -87164.93744 | S10: =-'Avg Nt Fix Ass &UCC'!T124-'Avg Nt Fix Ass &UCC'!T138 -> -80191.74245 | T10: =-'Avg Nt Fix Ass &UCC'!U124-'Avg Nt Fix Ass &UCC'!U138 -> -73776.40305
B11: Change in taxable income | C11: =SUM(C8:C10) -> -385.5052137 | D11: -26384.51575 | E11: -31549.99338 | F11: 3369.350177 | G11: 9515.382155 | H11: 8617.172597 | I11: =SUM(I8:I10) -> 21197.63907 | J11: 30952.62567 | K11: 38915.42933 | L11: 45853.05181 | M11: 53467.35946 | N11: 60161.65226 | O11: =SUM(O8:O10) -> 66009.53141 | P11: 71078.71 | Q11: 75431.48408 | R11: 79125.166 | S11: 82212.48313 | T11: =SUM(T8:T10) -> 84741.94467
B12: Tax Rate | C12: 0.2825 | D12: 0.2825 | E12: 0.265 | F12: 0.265 | G12: 0.265 | H12: 0.265 | I12: 0.265 | J12: 0.265 | K12: 0.265 | L12: 0.265 | M12: 0.265 | N12: =M12 -> 0.265 | O12: =N12 -> 0.265 | P12: 0.265 | Q12: 0.265 | R12: 0.265 | S12: 0.265 | T12: 0.265
B13: Income Taxes Payable | C13: =C11*C12 -> -108.9052229 | D13: -7453.6257 | E13: -8360.748245 | F13: 892.877797 | G13: 2521.576271 | H13: 2283.550738 | I13: =I11*I12 -> 5617.374354 | J13: 8202.445802 | K13: 10312.58877 | L13: 12151.05873 | M13: 14168.85026 | N13: 15942.83785 | O13: =O11*O12 -> 17492.52582 | P13: 18835.85815 | Q13: 19989.34328 | R13: 20968.16899 | S13: 21786.30803 | T13: =T11*T12 -> 22456.61534
B15: ONTARIO CAPITAL TAX
B16: Closing Net Fixed Assets | C16: 80119.31667 | D16: 471012.0936 | E16: 1024828.919 | F16: 1691159.95 | G16: 2640422.753 | H16: 2597925.208 | I16: 2554965.226 | J16: 2447213.427 | K16: 2341108.261 | L16: 2236649.179 | M16: 2132190.097 | N16: ='Avg Nt Fix Ass &UCC'!O111 -> 2027731.014 | O16: ='Avg Nt Fix Ass &UCC'!P111 -> 1923271.932 | P16: ='Avg Nt Fix Ass &UCC'!Q111 -> 1818812.85 | Q16: ='Avg Nt Fix Ass &UCC'!R111 -> 1714353.768 | R16: ='Avg Nt Fix Ass &UCC'!S111 -> 1609894.685 | S16: ='Avg Nt Fix Ass &UCC'!T111 -> 1505435.603 | T16: ='Avg Nt Fix Ass &UCC'!U111 -> 1400976.521
B17: Less: Exemption | C17: 0 | D17: 0 | E17: 0 | F17: 0 | G17: 0 | H17: 0 | I17: 0 | J17: 0 | K17: 0 | L17: 0 | M17: 0 | N17: 0 | O17: 0 | P17: 0 | Q17: 0 | R17: 0 | S17: 0 | T17: 0
B18: Deemed Taxable Capital | C18: =C16-C17 -> 80119.31667 | D18: 471012.0936 | E18: 1024828.919 | F18: 1691159.95 | G18: 2640422.753 | H18: 2597925.208 | I18: =I16-I17 -> 2554965.226 | J18: 2447213.427 | K18: 2341108.261 | L18: 2236649.179 | M18: 2132190.097 | N18: 2027731.014 | O18: =O16-O17 -> 1923271.932 | P18: 1818812.85 | Q18: 1714353.768 | R18: 1609894.685 | S18: 1505435.603 | T18: =T16-T17 -> 1400976.521
B19: Ontario Capital Tax Rate
B20: Net Amount (Taxable Capital x Rate) | C20: =C18*C19 -> 0 | D20: 0 | E20: 0 | F20: 0 | G20: 0 | H20: 0 | I20: =I18*I19 -> 0 | J20: 0 | K20: 0 | L20: 0 | M20: 0 | N20: 0 | O20: =O18*O19 -> 0 | P20: 0 | Q20: 0 | R20: 0 | S20: 0 | T20: =T18*T19 -> 0
B23: Gross Up | C23: 2010 | D23: 2011 | E23: 2012 | F23: 2013 | G23: 2014 | H23: 2015 | I23: 2016 | J23: 2017 | K23: 2018 | L23: 2019 | M23: 2020 | N23: =N6 -> 2021 | O23: =O6 -> 2022 | P23: 2023 | Q23: 2024 | R23: 2025 | S23: 2026 | T23: =T6 -> 2027
C24: PILs Payable | D24: PILs Payable | E24: PILs Payable | F24: PILs Payable | G24: PILs Payable | H24: PILs Payable | I24: PILs Payable | J24: PILs Payable | K24: PILs Payable | L24: PILs Payable | M24: PILs Payable | N24: PILs Payable | O24: PILs Payable | P24: PILs Payable | Q24: PILs Payable | R24: PILs Payable | S24: PILs Payable | T24: PILs Payable
B25: Change in Income Taxes Payable | C25: =C13 -> -108.9052229 | D25: -7453.6257 | E25: -8360.748245 | F25: 892.877797 | G25: 2521.576271 | H25: 2283.550738 | I25: =I13 -> 5617.374354 | J25: 8202.445802 | K25: 10312.58877 | L25: 12151.05873 | M25: 14168.85026 | N25: 15942.83785 | O25: =O13 -> 17492.52582 | P25: 18835.85815 | Q25: 19989.34328 | R25: 20968.16899 | S25: 21786.30803 | T25: =T13 -> 22456.61534
B26: Change in OCT | C26: =C20 -> 0 | D26: 0 | E26: 0 | F26: 0 | G26: 0 | H26: 0 | I26: =I20 -> 0 | J26: 0 | K26: 0 | L26: 0 | M26: 0 | N26: 0 | O26: =O20 -> 0 | P26: 0 | Q26: 0 | R26: 0 | S26: 0 | T26: =T20 -> 0
B27: PIL's | C27: =SUM(C25:C26) -> -108.9052229 | D27: -7453.6257 | E27: -8360.748245 | F27: 892.877797 | G27: 2521.576271 | H27: 2283.550738 | I27: =SUM(I25:I26) -> 5617.374354 | J27: 8202.445802 | K27: 10312.58877 | L27: 12151.05873 | M27: 14168.85026 | N27: 15942.83785 | O27: =SUM(O25:O26) -> 17492.52582 | P27: 18835.85815 | Q27: 19989.34328 | R27: 20968.16899 | S27: 21786.30803 | T27: =SUM(T25:T26) -> 22456.61534
C31: 2010 | D31: 2011 | E31: 2012 | F31: 2013 | G31: 2014 | H31: 2015 | I31: 2016 | J31: 2017 | K31: 2018 | L31: 2019 | M31: 2020 | N31: =N23 -> 2021 | O31: =O23 -> 2022 | P31: 2023 | Q31: 2024 | R31: 2025 | S31: 2026 | T31: =T23 -> 2027
C32: Grossed Up PILs | D32: Grossed Up PILs | E32: Grossed Up PILs | F32: Grossed Up PILs | G32: Grossed Up PILs | H32: Grossed Up PILs | I32: Grossed Up PILs | J32: Grossed Up PILs | K32: Grossed Up PILs | L32: Grossed Up PILs | M32: Grossed Up PILs | N32: Grossed Up PILs | O32: Grossed Up PILs | P32: Grossed Up PILs | Q32: Grossed Up PILs | R32: Grossed Up PILs | S32: Grossed Up PILs | T32: Grossed Up PILs
B33: Change in Income Taxes Payable | C33: =C25/(1-C12) -> -151.7842827 | D33: -10388.3285 | E33: -11375.16768 | F33: 1214.799724 | G33: 3430.716015 | H33: 3106.871753 | I33: =I25/(1-I12) -> 7642.686196 | J33: 11159.79021 | K33: 14030.73302 | L33: 16532.05269 | M33: 19277.34729 | N33: 21690.93585 | O33: =O25/(1-O12) -> 23799.35486 | P33: 25627.01789 | Q33: 27196.38542 | R33: 28528.12107 | S33: 29641.23542 | T33: =T25/(1-T12) -> 30553.21815
B34: Change in OCT | C34: =C20 -> 0 | D34: 0 | E34: 0 | F34: 0 | G34: 0 | H34: 0 | I34: =I20 -> 0 | J34: 0 | K34: 0 | L34: 0 | M34: 0 | N34: 0 | O34: =O20 -> 0 | P34: 0 | Q34: 0 | R34: 0 | S34: 0 | T34: =T20 -> 0
B35: PIL's | C35: =SUM(C33:C34) -> -151.7842827 | D35: -10388.3285 | E35: -11375.16768 | F35: 1214.799724 | G35: 3430.716015 | H35: 3106.871753 | I35: =SUM(I33:I34) -> 7642.686196 | J35: 11159.79021 | K35: 14030.73302 | L35: 16532.05269 | M35: 19277.34729 | N35: 21690.93585 | O35: =SUM(O33:O34) -> 23799.35486 | P35: 25627.01789 | Q35: 27196.38542 | R35: 28528.12107 | S35: 29641.23542 | T35: =SUM(T33:T34) -> 30553.21815

Sheet Avg Nt Fix Ass &UCC
B1: PowerStream Inc
B2: Renewable Generation Connection Rate Protection
B3: Compensation Amounts under Ontario Regulation 330/09
B4: Average Net Fixed Assets
D6: 2010 | E6: 2011 | F6: 2012 | G6: 2013 | H6: 2014 | I6: 2015 | J6: 2016 | K6: 2017 | L6: 2018 | M6: 2019 | N6: 2020 | O6: =+N6+1 -> 2021 | P6: =+O6+1 -> 2022 | Q6: 2023 | R6: 2024 | S6: 2025 | T6: 2026 | U6: 2027
A7: 1818 | B7: Net Fixed Assets/1818/1821
C8: Years
B9: Opening Capital Investment | D9: 0 | E9: =D11 -> 30624 | F9: 165213 | G9: 466517.6439 | H9: 885216.6128 | I9: 1316371.31 | J9: 1316371.31 | K9: 1316371.31 | L9: 1316371.31 | M9: 1316371.31 | N9: 1316371.31 | O9: 1316371.31 | P9: =O11 -> 1316371.31 | Q9: =P11 -> 1316371.31 | R9: =Q11 -> 1316371.31 | S9: =R11 -> 1316371.31 | T9: =S11 -> 1316371.31 | U9: 1316371.31
B10: Capital Investment | D10: 30624 | E10: 134589 | F10: 301304.6439 | G10: 418698.9689 | H10: 431154.6971 | I10: 0 | J10: 0
B11: Closing Capital Investment | D11: =SUM(D9:D10) -> 30624 | E11: 165213 | F11: 466517.6439 | G11: 885216.6128 | H11: 1316371.31 | I11: 1316371.31 | J11: =SUM(J9:J10) -> 1316371.31 | K11: 1316371.31 | L11: 1316371.31 | M11: 1316371.31 | N11: 1316371.31 | O11: 1316371.31 | P11: =SUM(P9:P10) -> 1316371.31 | Q11: 1316371.31 | R11: 1316371.31 | S11: 1316371.31 | T11: 1316371.31 | U11: =SUM(U9:U10) -> 1316371.31
B13: Opening Accumulated Amortization | D13: 0 | E13: =D16 -> 382.8 | F13: 2830.7625 | G13: 10727.39555 | H13: 27624.07376 | I13: 55143.92279 | J13: 88053.20554 | K13: 120962.4883 | L13: 153871.771 | M13: 186781.0538 | N13: 219690.3365 | O13: 252599.6193 | P13: =O16 -> 285508.902 | Q13: =P16 -> 318418.1848 | R13: =Q16 -> 351327.4675 | S13: =R16 -> 384236.7503 | T13: =S16 -> 417146.033 | U13: 450055.3158
B14: Amortization Year One | C14: 40 | D14: =D10/$C14/2 -> 382.8 | E14: =E10/$C14/2 -> 1682.3625 | F14: 3766.308048 | G14: 5233.737112 | H14: 5389.433714 | I14: 0 | J14: =J10/$C14/2 -> 0 | K14: 0 | L14: 0 | M14: 0 | N14: 0 | O14: 0 | P14: =P10/$C14/2 -> 0 | Q14: 0 | R14: 0 | S14: 0 | T14: 0 | U14: =U10/$C14/2 -> 0
B15: Amortization Thereafter | C15: 40 | D15: =D9/$C15 -> 0 | E15: 765.6 | F15: 4130.325 | G15: =G9/$C15 -> 11662.9411 | H15: 22130.41532 | I15: 32909.28275 | J15: =J9/$C15 -> 32909.28275 | K15: 32909.28275 | L15: 32909.28275 | M15: 32909.28275 | N15: 32909.28275 | O15: 32909.28275 | P15: =P9/$C15 -> 32909.28275 | Q15: 32909.28275 | R15: 32909.28275 | S15: 32909.28275 | T15: 32909.28275 | U15: =U9/$C15 -> 32909.28275
B16: Closing Accumulated Amortization | D16: =SUM(D13:D15) -> 382.8 | E16: 2830.7625 | F16: 10727.39555 | G16: 27624.07376 | H16: 55143.92279 | I16: 88053.20554 | J16: =SUM(J13:J15) -> 120962.4883 | K16: 153871.771 | L16: 186781.0538 | M16: 219690.3365 | N16: 252599.6193 | O16: 285508.902 | P16: =SUM(P13:P15) -> 318418.1848 | Q16: 351327.4675 | R16: 384236.7503 | S16: 417146.033 | T16: 450055.3158 | U16: =SUM(U13:U15) -> 482964.5985
B18: Opening Net Fixed Assets | D18: =D9-D13 -> 0 | E18: 30241.2 | F18: 162382.2375 | G18: =G9-G13 -> 455790.2483 | H18: 857592.539 | I18: 1261227.387 | J18: =J9-J13 -> 1228318.104 | K18: 1195408.822 | L18: 1162499.539 | M18: 1129590.256 | N18: 1096680.973 | O18: 1063771.691 | P18: =P9-P13 -> 1030862.408 | Q18: 997953.1251 | R18: 965043.8424 | S18: 932134.5596 | T18: 899225.2769 | U18: =U9-U13 -> 866315.9941
B19: Closing Net Fixed Assets | D19: =D11-D16 -> 30241.2 | E19: 162382.2375 | F19: 455790.2483 | G19: =G11-G16 -> 857592.539 | H19: 1261227.387 | I19: 1228318.104 | J19: =J11-J16 -> 1195408.822 | K19: 1162499.539 | L19: 1129590.256 | M19: 1096680.973 | N19: 1063771.691 | O19: 1030862.408 | P19: =P11-P16 -> 997953.1251 | Q19: 965043.8424 | R19: 932134.5596 | S19: 899225.2769 | T19: 866315.9941 | U19: =U11-U16 -> 833406.7114
B20: Average Net Fixed Assets | D20: =SUM(D18:D19)/2 -> 15120.6 | E20: 96311.71875 | F20: 309086.2429 | G20: 656691.3937 | H20: 1059409.963 | I20: 1244772.746 | J20: =SUM(J18:J19)/2 -> 1211863.463 | K20: 1178954.18 | L20: 1146044.898 | M20: 1113135.615 | N20: 1080226.332 | O20: 1047317.049 | P20: =SUM(P18:P19)/2 -> 1014407.767 | Q20: 981498.4838 | R20: 948589.201 | S20: 915679.9183 | T20: 882770.6355 | U20: =SUM(U18:U19)/2 -> 849861.3528
D23: 2010 | E23: 2011 | F23: 2012 | G23: 2013 | H23: 2014 | I23: 2015 | J23: 2016 | K23: 2017 | L23: 2018 | M23: 2019 | N23: 2020 | O23: =O6 -> 2021 | P23: =P6 -> 2022 | Q23: 2023 | R23: 2024 | S23: 2025 | T23: 2026 | U23: =U6 -> 2027
A24: 1925 | B24: Net Fixed Assets/Software
B26: Opening Capital Investment | D26: 0 | E26: =D28 -> 795 | F26: 71358 | G26: 102441.2689 | H26: 102441.2689 | I26: 115612.1353 | J26: 115612.1353 | K26: 115612.1353 | L26: 115612.1353 | M26: 115612.1353 | N26: 115612.1353 | O26: 115612.1353 | P26: =O28 -> 115612.1353 | Q26: =P28 -> 115612.1353 | R26: =Q28 -> 115612.1353 | S26: =R28 -> 115612.1353 | T26: =S28 -> 115612.1353 | U26: 115612.1353
B27: Capital Investment | D27: 795 | E27: 70563 | F27: 31083.26887 | G27: 0 | H27: 13170.8664 | I27: 0 | J27: 0
B28: Closing Capital Investment | D28: =SUM(D26:D27) -> 795 | E28: 71358 | F28: 102441.2689 | G28: 102441.2689 | H28: 115612.1353 | I28: 115612.1353 | J28: =SUM(J26:J27) -> 115612.1353 | K28: 115612.1353 | L28: 115612.1353 | M28: 115612.1353 | N28: 115612.1353 | O28: 115612.1353 | P28: =SUM(P26:P27) -> 115612.1353 | Q28: 115612.1353 | R28: 115612.1353 | S28: 115612.1353 | T28: 115612.1353 | U28: =SUM(U26:U27) -> 115612.1353
B30: Opening Accumulated Amortization | D30: 0 | E30: =D33 -> 99.375 | F30: 9118.5 | G30: 30843.40861 | H30: 56453.72582 | I30: 83710.40134 | J30: 103495.1179 | K30: 110673.3345 | L30: 113966.0511 | M30: 115612.1353 | N30: 115612.1353 | O30: 115612.1353 | P30: =O33 -> 115612.1353 | Q30: =P33 -> 115612.1353 | R30: =Q33 -> 115612.1353 | S30: =R33 -> 115612.1353 | T30: =S33 -> 115612.1353 | U30: 115612.1353
B31: Amortization Year One | C31: 4 | D31: =D27/$C31/2 -> 99.375 | E31: =E27/$C31/2 -> 8820.375 | F31: =F27/$C31/2 -> 3885.408608 | G31: =G27/$C31/2 -> 0 | H31: =H27/$C31/2 -> 1646.3583 | I31: =I27/$C31/2 -> 0 | J31: 0 | K31: 0 | L31: 0 | M31: 0 | N31: 0 | O31: =O27/$C31/2 -> 0 | P31: =P27/$C31/2 -> 0 | Q31: 0 | R31: 0 | S31: 0 | T31: 0 | U31: =U27/$C31/2 -> 0
B32: Amortization Thereafter | C32: 4 | D32: =D26/$C32 -> 0 | E32: =E26/$C32 -> 198.75 | F32: =F26/$C32 -> 17839.5 | G32: =G26/$C32 -> 25610.31722 | H32: =H26/$C32 -> 25610.31722 | I32: =8721+7771+H27/4 -> 19784.7166 | J32: =3885.5+H27/4 -> 7178.2166 | K32: =H27/4 -> 3292.7166 | L32: =K36 -> 1646.084124 | M32: 0 | N32: 0 | O32: 0 | P32: 0 | Q32: 0 | R32: 0 | S32: 0 | T32: 0 | U32: 0
B33: Closing Accumulated Amortization | D33: =SUM(D30:D32) -> 99.375 | E33: 9118.5 | F33: 30843.40861 | G33: 56453.72582 | H33: 83710.40134 | I33: 103495.1179 | J33: =SUM(J30:J32) -> 110673.3345 | K33: 113966.0511 | L33: 115612.1353 | M33: 115612.1353 | N33: 115612.1353 | O33: 115612.1353 | P33: =SUM(P30:P32) -> 115612.1353 | Q33: 115612.1353 | R33: 115612.1353 | S33: 115612.1353 | T33: 115612.1353 | U33: =SUM(U30:U32) -> 115612.1353
B35: Opening Net Fixed Assets | D35: =D26-D30 -> 0 | E35: =E26-E30 -> 695.625 | F35: =F26-F30 -> 62239.5 | G35: =G26-G30 -> 71597.86026 | H35: =H26-H30 -> 45987.54304 | I35: =I26-I30 -> 31901.73392 | J35: 12117.01732 | K35: 4938.800724 | L35: 1646.084124 | M35: 0 | N35: 0 | O35: =O26-O30 -> 0 | P35: =P26-P30 -> 0 | Q35: 0 | R35: 0 | S35: 0 | T35: 0 | U35: =U26-U30 -> 0
B36: Closing Net Fixed Assets | D36: =D28-D33 -> 695.625 | E36: =E28-E33 -> 62239.5 | F36: =F28-F33 -> 71597.86026 | G36: =G28-G33 -> 45987.54304 | H36: =H28-H33 -> 31901.73392 | I36: =I28-I33 -> 12117.01732 | J36: =J28-J33 -> 4938.800724 | K36: 1646.084124 | L36: 0 | M36: 0 | N36: 0 | O36: =O28-O33 -> 0 | P36: =P28-P33 -> 0 | Q36: 0 | R36: 0 | S36: 0 | T36: 0 | U36: =U28-U33 -> 0
B37: Average Net Fixed Assets | D37: =SUM(D35:D36)/2 -> 347.8125 | E37: 31467.5625 | F37: 66918.68013 | G37: 58792.70165 | H37: 38944.63848 | I37: 22009.37562 | J37: =SUM(J35:J36)/2 -> 8527.909024 | K37: 3292.442424 | L37: 823.0420622 | M37: 0 | N37: 0 | O37: 0 | P37: =SUM(P35:P36)/2 -> 0 | Q37: 0 | R37: 0 | S37: 0 | T37: 0 | U37: =SUM(U35:U36)/2 -> 0
D40: 2010 | E40: 2011 | F40: 2012 | G40: 2013 | H40: 2014 | I40: 2015 | J40: 2016 | K40: 2017 | L40: 2018 | M40: 2019 | N40: 2020 | O40: =O23 -> 2021 | P40: =P23 -> 2022 | Q40: 2023 | R40: 2024 | S40: 2025 | T40: 2026 | U40: =U23 -> 2027
A41: 1981 | B41: Net Fixed Assets /1981
B43: Opening Capital Investment | D43: 0 | E43: =D45 -> 27778 | F43: 134226 | G43: 215957.5823 | H43: 246682.4334 | I43: 451389.3815 | J43: 451389.3815 | K43: 451389.3815 | L43: 451389.3815 | M43: 451389.3815 | N43: 451389.3815 | O43: 451389.3815 | P43: =O45 -> 451389.3815 | Q43: =P45 -> 451389.3815 | R43: =Q45 -> 451389.3815 | S43: =R45 -> 451389.3815 | T43: =S45 -> 451389.3815 | U43: 451389.3815
B44: Capital Investment | D44: 27778 | E44: 106448 | F44: 81731.58234 | G44: 30724.85102 | H44: 204706.9481 | I44: 0 | J44: 0
B45: Closing Capital Investment | D45: =SUM(D43:D44) -> 27778 | E45: 134226 | F45: 215957.5823 | G45: 246682.4334 | H45: 451389.3815 | I45: 451389.3815 | J45: =SUM(J43:J44) -> 451389.3815 | K45: 451389.3815 | L45: 451389.3815 | M45: 451389.3815 | N45: 451389.3815 | O45: 451389.3815 | P45: =SUM(P43:P44) -> 451389.3815 | Q45: 451389.3815 | R45: 451389.3815 | S45: 451389.3815 | T45: 451389.3815 | U45: =SUM(U43:U44) -> 451389.3815
B47: Opening Accumulated Amortization | D47: 0 | E47: =D50 -> 925.9333333 | F47: 6326.066667 | G47: 17998.85274 | H47: 33420.1866 | I47: 56689.2471 | J47: 86781.87253 | K47: 116874.498 | L47: 146967.1234 | M47: 177059.7488 | N47: 207152.3742 | O47: 237244.9997 | P47: =O50 -> 267337.6251 | Q47: =P50 -> 297430.2505 | R47: =Q50 -> 327522.876 | S47: =R50 -> 357615.5014 | T47: =S50 -> 387708.1268 | U47: 417800.7523
B48: Amortization Year One | C48: 15 | D48: =D44/$C48/2 -> 925.9333333 | E48: 3548.266667 | F48: 2724.386078 | G48: 1024.161701 | H48: 6823.564936 | I48: 0 | J48: =J44/$C48/2 -> 0 | K48: 0 | L48: 0 | M48: 0 | N48: 0 | O48: 0 | P48: =P44/$C48/2 -> 0 | Q48: 0 | R48: 0 | S48: 0 | T48: 0 | U48: =U44/$C48/2 -> 0
B49: Amortization Thereafter | C49: 15 | D49: =D43/$C49 -> 0 | E49: 1851.866667 | F49: 8948.4 | G49: 14397.17216 | H49: 16445.49556 | I49: 30092.62543 | J49: =J43/$C49 -> 30092.62543 | K49: 30092.62543 | L49: 30092.62543 | M49: 30092.62543 | N49: 30092.62543 | O49: 30092.62543 | P49: =P43/$C49 -> 30092.62543 | Q49: 30092.62543 | R49: 30092.62543 | S49: 30092.62543 | T49: 30092.62543 | U49: =U43/$C49 -> 30092.62543
B50: Closing Accumulated Amortization | D50: =SUM(D47:D49) -> 925.9333333 | E50: 6326.066667 | F50: 17998.85274 | G50: 33420.1866 | H50: 56689.2471 | I50: 86781.87253 | J50: =SUM(J47:J49) -> 116874.498 | K50: 146967.1234 | L50: 177059.7488 | M50: 207152.3742 | N50: 237244.9997 | O50: 267337.6251 | P50: =SUM(P47:P49) -> 297430.2505 | Q50: 327522.876 | R50: 357615.5014 | S50: 387708.1268 | T50: 417800.7523 | U50: =SUM(U47:U49) -> 447893.3777
B52: Opening Net Fixed Assets | D52: =D43-D47 -> 0 | E52: 26852.06667 | F52: 127899.9333 | G52: 197958.7296 | H52: 213262.2468 | I52: 394700.1344 | J52: =J43-J47 -> 364607.5089 | K52: 334514.8835 | L52: 304422.2581 | M52: 274329.6326 | N52: 244237.0072 | O52: 214144.3818 | P52: =P43-P47 -> 184051.7563 | Q52: 153959.1309 | R52: 123866.5055 | S52: 93773.88006 | T52: 63681.25462 | U52: =U43-U47 -> 33588.62919
B53: Closing Net Fixed Assets | D53: =D45-D50 -> 26852.06667 | E53: 127899.9333 | F53: 197958.7296 | G53: 213262.2468 | H53: 394700.1344 | I53: 364607.5089 | J53: =J45-J50 -> 334514.8835 | K53: 304422.2581 | L53: 274329.6326 | M53: 244237.0072 | N53: 214144.3818 | O53: 184051.7563 | P53: =P45-P50 -> 153959.1309 | Q53: 123866.5055 | R53: 93773.88006 | S53: 63681.25462 | T53: 33588.62919 | U53: =U45-U50 -> 3496.003765
B54: Average Net Fixed Assets | D54: =SUM(D52:D53)/2 -> 13426.03333 | E54: 77376 | F54: 162929.3315 | G54: 205610.4882 | H54: 303981.1906 | I54: 379653.8216 | J54: =SUM(J52:J53)/2 -> 349561.1962 | K54: 319468.5708 | L54: 289375.9454 | M54: 259283.3199 | N54: 229190.6945 | O54: 199098.0691 | P54: =SUM(P52:P53)/2 -> 169005.4436 | Q54: 138912.8182 | R54: 108820.1928 | S54: 78727.56734 | T54: 48634.94191 | U54: =SUM(U52:U53)/2 -> 18542.31648
D57: 2010 | E57: 2011 | F57: 2012 | G57: 2013 | H57: 2014 | I57: 2015 | J57: 2016 | K57: 2017 | L57: 2018 | M57: 2019 | N57: 2020 | O57: =O40 -> 2021 | P57: =P40 -> 2022 | Q57: 2023 | R57: 2024 | S57: 2025 | T57: 2026 | U57: =U40 -> 2027
A58: 1822 | B58: Net Fixed Assets /P&C systems
B60: Opening Capital Investment | D60: 0 | E60: =D62 -> 22903 | F60: 110667 | G60: 178047.1192 | H60: 203379.0066 | I60: 434743.7282 | J60: 511227.7682 | K60: 578230.0282 | L60: 578230.0282 | M60: 578230.0282 | N60: 578230.0282 | O60: 578230.0282 | P60: =O62 -> 578230.0282 | Q60: =P62 -> 578230.0282 | R60: =Q62 -> 578230.0282 | S60: =R62 -> 578230.0282 | T60: =S62 -> 578230.0282 | U60: 578230.0282
B61: Capital Investment | D61: 22903 | E61: 87764 | F61: 67380.11924 | G61: 25331.88733 | H61: 231364.7216 | I61: 76484.04 | J61: 67002.26
B62: Closing Capital Investment | D62: =SUM(D60:D61) -> 22903 | E62: 110667 | F62: 178047.1192 | G62: 203379.0066 | H62: 434743.7282 | I62: 511227.7682 | J62: =SUM(J60:J61) -> 578230.0282 | K62: 578230.0282 | L62: 578230.0282 | M62: 578230.0282 | N62: 578230.0282 | O62: 578230.0282 | P62: =SUM(P60:P61) -> 578230.0282 | Q62: 578230.0282 | R62: 578230.0282 | S62: 578230.0282 | T62: 578230.0282 | U62: =SUM(U60:U61) -> 578230.0282
B64: Opening Accumulated Amortization | D64: =C67 -> 0 | E64: 572.575 | F64: 3911.825 | G64: 11129.67798 | H64: 20665.33113 | I64: 36618.3995 | J64: =I67 -> 60267.6869 | K64: 87504.13181 | L64: 116415.6332 | M64: 145327.1346 | N64: 174238.636 | O64: 203150.1374 | P64: =O67 -> 232061.6389 | Q64: =P67 -> 260973.1403 | R64: =Q67 -> 289884.6417 | S64: =R67 -> 318796.1431 | T64: =S67 -> 347707.6445 | U64: 376619.1459
B65: Amortization Year One | C65: 20 | D65: =D61/$C65/2 -> 572.575 | E65: 2194.1 | F65: 1684.502981 | G65: 633.2971833 | H65: 5784.11804 | I65: 1912.101 | J65: =J61/$C65/2 -> 1675.0565 | K65: 0 | L65: 0 | M65: 0 | N65: 0 | O65: 0 | P65: =P61/$C65/2 -> 0 | Q65: 0 | R65: 0 | S65: 0 | T65: 0 | U65: =U61/$C65/2 -> 0
B66: Amortization Thereafter | C66: 20 | D66: =D60/$C66 -> 0 | E66: 1145.15 | F66: 5533.35 | G66: 8902.355962 | H66: 10168.95033 | I66: 21737.18641 | J66: =J60/$C66 -> 25561.38841 | K66: 28911.50141 | L66: 28911.50141 | M66: 28911.50141 | N66: 28911.50141 | O66: 28911.50141 | P66: =P60/$C66 -> 28911.50141 | Q66: 28911.50141 | R66: 28911.50141 | S66: 28911.50141 | T66: 28911.50141 | U66: =U60/$C66 -> 28911.50141
B67: Closing Accumulated Amortization | D67: =SUM(D64:D66) -> 572.575 | E67: 3911.825 | F67: 11129.67798 | G67: 20665.33113 | H67: 36618.3995 | I67: 60267.6869 | J67: =SUM(J64:J66) -> 87504.13181 | K67: 116415.6332 | L67: 145327.1346 | M67: 174238.636 | N67: 203150.1374 | O67: 232061.6389 | P67: =SUM(P64:P66) -> 260973.1403 | Q67: 289884.6417 | R67: 318796.1431 | S67: 347707.6445 | T67: 376619.1459 | U67: =SUM(U64:U66) -> 405530.6473
B69: Opening Net Fixed Assets | D69: =D60-D64 -> 0 | E69: 22330.425 | F69: 106755.175 | G69: 166917.4413 | H69: 182713.6755 | I69: 398125.3287 | J69: =J60-J64 -> 450960.0813 | K69: 490725.8963 | L69: 461814.3949 | M69: 432902.8935 | N69: 403991.3921 | O69: 375079.8907 | P69: =P60-P64 -> 346168.3893 | Q69: 317256.8879 | R69: 288345.3865 | S69: 259433.8851 | T69: 230522.3837 | U69: =U60-U64 -> 201610.8823
B70: Closing Net Fixed Assets | D70: =D62-D67 -> 22330.425 | E70: 106755.175 | F70: 166917.4413 | G70: 182713.6755 | H70: 398125.3287 | I70: 450960.0813 | J70: =J62-J67 -> 490725.8963 | K70: 461814.3949 | L70: 432902.8935 | M70: 403991.3921 | N70: 375079.8907 | O70: 346168.3893 | P70: =P62-P67 -> 317256.8879 | Q70: 288345.3865 | R70: 259433.8851 | S70: 230522.3837 | T70: 201610.8823 | U70: =U62-U67 -> 172699.3809
B71: Average Net Fixed Assets | D71: =SUM(D69:D70)/2 -> 11165.2125 | E71: 64542.8 | F71: 136836.3081 | G71: 174815.5584 | H71: 290419.5021 | I71: 424542.705 | J71: =SUM(J69:J70)/2 -> 470842.9888 | K71: 476270.1456 | L71: 447358.6442 | M71: 418447.1428 | N71: 389535.6414 | O71: 360624.14 | P71: =SUM(P69:P70)/2 -> 331712.6386 | Q71: 302801.1372 | R71: 273889.6358 | S71: 244978.1344 | T71: 216066.633 | U71: =SUM(U69:U70)/2 -> 187155.1316
D74: 2010 | E74: 2011 | F74: 2012 | G74: 2013 | H74: 2014 | I74: 2015 | J74: 2016 | K74: 2017 | L74: 2018 | M74: 2019 | N74: 2020 | O74: =O57 -> 2021 | P74: =P57 -> 2022 | Q74: 2023 | R74: 2024 | S74: 2025 | T74: 2026 | U74: =U57 -> 2027
A75: 1912 | B75: Net Fixed Assets /1912
B77: Opening Capital Investment | D77: 0 | E77: =D79 -> 0 | F77: 1873 | G77: 1873 | H77: 43701.99275 | I77: 82005.38525 | J77: 82005.38525 | K77: 82005.38525 | L77: 82005.38525 | M77: 82005.38525 | N77: 82005.38525 | O77: 82005.38525 | P77: =O79 -> 82005.38525 | Q77: =P79 -> 82005.38525 | R77: =Q79 -> 82005.38525 | S77: =R79 -> 82005.38525 | T77: =S79 -> 82005.38525 | U77: 82005.38525
B78: Capital Investment | D78: 0 | E78: 1873 | F78: 0 | G78: 41828.99275 | H78: 38303.3925 | I78: 0 | J78: 0
B79: Closing Capital Investment | D79: =SUM(D77:D78) -> 0 | E79: 1873 | F79: 1873 | G79: 43701.99275 | H79: 82005.38525 | I79: 82005.38525 | J79: =SUM(J77:J78) -> 82005.38525 | K79: 82005.38525 | L79: 82005.38525 | M79: 82005.38525 | N79: 82005.38525 | O79: 82005.38525 | P79: =SUM(P77:P78) -> 82005.38525 | Q79: 82005.38525 | R79: 82005.38525 | S79: 82005.38525 | T79: 82005.38525 | U79: =SUM(U77:U78) -> 82005.38525
B81: Opening Accumulated Amortization | D81: =C84 -> 0 | E81: 0 | F81: 18.73 | G81: 56.19 | H81: 511.9399275 | I81: 1769.013708 | J81: =I84 -> 3409.121413 | K81: 5049.229118 | L81: 6689.336823 | M81: 8329.444528 | N81: 9969.552233 | O81: 11609.65994 | P81: =O84 -> 13249.76764 | Q81: =P84 -> 14889.87535 | R81: =Q84 -> 16529.98305 | S81: =R84 -> 18170.09076 | T81: =S84 -> 19810.19846 | U81: 21450.30617
B82: Amortization Year One | C82: 50 | D82: =D78/$C82/2 -> 0 | E82: 18.73 | F82: 0 | G82: 418.2899275 | H82: 383.033925 | I82: 0 | J82: =J78/$C82/2 -> 0 | K82: 0 | L82: 0 | M82: 0 | N82: 0 | O82: 0 | P82: =P78/$C82/2 -> 0 | Q82: 0 | R82: 0 | S82: 0 | T82: 0 | U82: =U78/$C82/2 -> 0
B83: Amortization Thereafter | C83: 50 | D83: =D77/$C83 -> 0 | E83: 0 | F83: 37.46 | G83: 37.46 | H83: 874.0398551 | I83: 1640.107705 | J83: =J77/$C83 -> 1640.107705 | K83: 1640.107705 | L83: 1640.107705 | M83: 1640.107705 | N83: 1640.107705 | O83: 1640.107705 | P83: =P77/$C83 -> 1640.107705 | Q83: 1640.107705 | R83: 1640.107705 | S83: 1640.107705 | T83: 1640.107705 | U83: =U77/$C83 -> 1640.107705
B84: Closing Accumulated Amortization | D84: =SUM(D81:D83) -> 0 | E84: 18.73 | F84: 56.19 | G84: 511.9399275 | H84: 1769.013708 | I84: 3409.121413 | J84: =SUM(J81:J83) -> 5049.229118 | K84: 6689.336823 | L84: 8329.444528 | M84: 9969.552233 | N84: 11609.65994 | O84: 13249.76764 | P84: =SUM(P81:P83) -> 14889.87535 | Q84: 16529.98305 | R84: 18170.09076 | S84: 19810.19846 | T84: 21450.30617 | U84: =SUM(U81:U83) -> 23090.41387
B86: Opening Net Fixed Assets | D86: =D77-D81 -> 0 | E86: 0 | F86: 1854.27 | G86: 1816.81 | H86: 43190.05283 | I86: 80236.37154 | J86: =J77-J81 -> 78596.26384 | K86: 76956.15613 | L86: 75316.04843 | M86: 73675.94072 | N86: 72035.83302 | O86: 70395.72531 | P86: =P77-P81 -> 68755.61761 | Q86: 67115.5099 | R86: 65475.4022 | S86: 63835.29449 | T86: 62195.18679 | U86: =U77-U81 -> 60555.07908
B87: Closing Net Fixed Assets | D87: =D79-D84 -> 0 | E87: 1854.27 | F87: 1816.81 | G87: 43190.05283 | H87: 80236.37154 | I87: 78596.26384 | J87: =J79-J84 -> 76956.15613 | K87: 75316.04843 | L87: 73675.94072 | M87: 72035.83302 | N87: 70395.72531 | O87: 68755.61761 | P87: =P79-P84 -> 67115.5099 | Q87: 65475.4022 | R87: 63835.29449 | S87: 62195.18679 | T87: 60555.07908 | U87: =U79-U84 -> 58914.97138
B88: Average Net Fixed Assets | D88: =SUM(D86:D87)/2 -> 0 | E88: 927.135 | F88: 1835.54 | G88: 22503.43141 | H88: 61713.21218 | I88: 79416.31769 | J88: =SUM(J86:J87)/2 -> 77776.20998 | K88: 76136.10228 | L88: 74495.99457 | M88: 72855.88687 | N88: 71215.77916 | O88: 69575.67146 | P88: =SUM(P86:P87)/2 -> 67935.56375 | Q88: 66295.45605 | R88: 64655.34834 | S88: 63015.24064 | T88: 61375.13293 | U88: =SUM(U86:U87)/2 -> 59735.02523
D91: 2010 | E91: 2011 | F91: 2012 | G91: 2013 | H91: 2014 | I91: 2015 | J91: 2016 | K91: 2017 | L91: 2018 | M91: 2019 | N91: 2020 | O91: =O74 -> 2021 | P91: =P74 -> 2022 | Q91: 2023 | R91: 2024 | S91: 2025 | T91: 2026 | U91: =U74 -> 2027
A92: 1845 | B92: Net Fixed Assets /1845
B94: Opening Capital Investment | D94: 0 | E94: =D96 -> 0 | F94: 9992 | G94: 132441.4457 | H94: 355529.407 | I94: 490750.4212 | J94: 490750.4212 | K94: 490750.4212 | L94: 490750.4212 | M94: 490750.4212 | N94: 490750.4212 | O94: 490750.4212 | P94: =O96 -> 490750.4212 | Q94: =P96 -> 490750.4212 | R94: =Q96 -> 490750.4212 | S94: =R96 -> 490750.4212 | T94: =S96 -> 490750.4212 | U94: 490750.4212
B95: Capital Investment | D95: 0 | E95: 9992 | F95: 122449.4457 | G95: 223087.9614 | H95: 135221.0142 | I95: 0 | J95: 0
B96: Closing Capital Investment | D96: =SUM(D94:D95) -> 0 | E96: 9992 | F96: 132441.4457 | G96: 355529.407 | H96: 490750.4212 | I96: 490750.4212 | J96: =SUM(J94:J95) -> 490750.4212 | K96: 490750.4212 | L96: 490750.4212 | M96: 490750.4212 | N96: 490750.4212 | O96: 490750.4212 | P96: =SUM(P94:P95) -> 490750.4212 | Q96: 490750.4212 | R96: 490750.4212 | S96: 490750.4212 | T96: 490750.4212 | U96: =SUM(U94:U95) -> 490750.4212
B98: Opening Accumulated Amortization | D98: 0 | E98: =D101 -> 0 | F98: 111.0222222 | G98: 1693.616063 | H98: 7115.514427 | I98: 16518.62363 | J98: 27424.18855 | K98: 38329.75346 | L98: 49235.31838 | M98: 60140.88329 | N98: 71046.44821 | O98: 81952.01313 | P98: =O101 -> 92857.57804 | Q98: =P101 -> 103763.143 | R98: =Q101 -> 114668.7079 | S98: =R101 -> 125574.2728 | T98: =S101 -> 136479.8377 | U98: 147385.4026
B99: Amortization Year One | C99: 45 | D99: =D95/$C99/2 -> 0 | E99: 111.0222222 | F99: 1360.549397 | G99: 2478.755126 | H99: 1502.455713 | I99: 0 | J99: =J95/$C99/2 -> 0 | K99: 0 | L99: 0 | M99: 0 | N99: 0 | O99: 0 | P99: =P95/$C99/2 -> 0 | Q99: 0 | R99: 0 | S99: 0 | T99: 0 | U99: =U95/$C99/2 -> 0
B100: Amortization Thereafter | C100: 45 | D100: =D94/$C100 -> 0 | E100: 0 | F100: 222.0444444 | G100: 2943.143238 | H100: 7900.65349 | I100: 10905.56492 | J100: =J94/$C100 -> 10905.56492 | K100: 10905.56492 | L100: 10905.56492 | M100: 10905.56492 | N100: 10905.56492 | O100: 10905.56492 | P100: =P94/$C100 -> 10905.56492 | Q100: 10905.56492 | R100: 10905.56492 | S100: 10905.56492 | T100: 10905.56492 | U100: =U94/$C100 -> 10905.56492
B101: Closing Accumulated Amortization | D101: =SUM(D98:D100) -> 0 | E101: 111.0222222 | F101: 1693.616063 | G101: 7115.514427 | H101: 16518.62363 | I101: 27424.18855 | J101: =SUM(J98:J100) -> 38329.75346 | K101: 49235.31838 | L101: 60140.88329 | M101: 71046.44821 | N101: 81952.01313 | O101: 92857.57804 | P101: =SUM(P98:P100) -> 103763.143 | Q101: 114668.7079 | R101: 125574.2728 | S101: 136479.8377 | T101: 147385.4026 | U101: =SUM(U98:U100) -> 158290.9675
B103: Opening Net Fixed Assets | D103: =D94-D98 -> 0 | E103: 0 | F103: 9880.977778 | G103: 130747.8296 | H103: 348413.8926 | I103: 474231.7976 | J103: =J94-J98 -> 463326.2327 | K103: 452420.6678 | L103: 441515.1028 | M103: 430609.5379 | N103: 419703.973 | O103: 408798.4081 | P103: =P94-P98 -> 397892.8432 | Q103: 386987.2783 | R103: 376081.7133 | S103: 365176.1484 | T103: 354270.5835 | U103: =U94-U98 -> 343365.0186
B104: Closing Net Fixed Assets | D104: =D96-D101 -> 0 | E104: 9880.977778 | F104: 130747.8296 | G104: 348413.8926 | H104: 474231.7976 | I104: 463326.2327 | J104: =J96-J101 -> 452420.6678 | K104: 441515.1028 | L104: 430609.5379 | M104: 419703.973 | N104: 408798.4081 | O104: 397892.8432 | P104: =P96-P101 -> 386987.2783 | Q104: 376081.7133 | R104: 365176.1484 | S104: 354270.5835 | T104: 343365.0186 | U104: =U96-U101 -> 332459.4537
B105: Average Net Fixed Assets | D105: =SUM(D103:D104)/2 -> 0 | E105: 4940.488889 | F105: 70314.4037 | G105: 239580.8611 | H105: 411322.8451 | I105: 468779.0151 | J105: =SUM(J103:J104)/2 -> 457873.4502 | K105: 446967.8853 | L105: 436062.3204 | M105: 425156.7555 | N105: 414251.1906 | O105: 403345.6256 | P105: =SUM(P103:P104)/2 -> 392440.0607 | Q105: 381534.4958 | R105: 370628.9309 | S105: 359723.366 | T105: 348817.8011 | U105: =SUM(U103:U104)/2 -> 337912.2361
B107: TOTALS
B108: Additions | D108: =+D10+D27+D44+D61+D78+D95 -> 82100 | E108: =+E10+E27+E44+E61+E78+E95 -> 411229 | F108: 603949.06 | G108: 739672.6614 | H108: 1053921.64 | I108: 76484.04 | J108: 67002.26 | K108: 0 | L108: 0 | M108: 0 | N108: 0 | O108: =+O10+O27+O44+O61+O78+O95 -> 0 | P108: =+P10+P27+P44+P61+P78+P95 -> 0 | Q108: 0 | R108: 0 | S108: 0 | T108: 0 | U108: =+U10+U27+U44+U61+U78+U95 -> 0
B109: Average Net Fixed Assets | D109: =D20+D37+D54+D71+D88+D105 -> 40059.65833 | E109: 275565.7051 | F109: 747920.5063 | G109: =G20+G37+G54+G71+G88+G105 -> 1357994.434 | H109: 2165791.351 | I109: 2619173.981 | J109: =J20+J37+J54+J71+J88+J105 -> 2576445.217 | K109: 2501089.327 | L109: 2394160.844 | M109: 2288878.72 | N109: 2184419.638 | O109: 2079960.555 | P109: =P20+P37+P54+P71+P88+P105 -> 1975501.473 | Q109: 1871042.391 | R109: 1766583.309 | S109: 1662124.227 | T109: 1557665.144 | U109: =U20+U37+U54+U71+U88+U105 -> 1453206.062
B110: Total Amortization | D110: =SUM(D99:D100,D82:D83,D65:D66,D48:D49,D31:D32,D14:D15) -> 1980.683333 | E110: 20336.22306 | F110: 50132.23456 | G110: 73341.63072 | H110: 104658.8364 | I110: 118981.5848 | J110: =SUM(J99:J100,J82:J83,J65:J66,J48:J49,J31:J32,J14:J15) -> 109962.2423 | K110: 107751.7988 | L110: 106105.1663 | M110: 104459.0822 | N110: 104459.0822 | O110: 104459.0822 | P110: =SUM(P99:P100,P82:P83,P65:P66,P48:P49,P31:P32,P14:P15) -> 104459.0822 | Q110: 104459.0822 | R110: 104459.0822 | S110: 104459.0822 | T110: 104459.0822 | U110: =SUM(U99:U100,U82:U83,U65:U66,U48:U49,U31:U32,U14:U15) -> 104459.0822
B111: Closing NFA | D111: =SUM(D19,D36,D53,D70,D87,D104) -> 80119.31667 | E111: =SUM(E19,E36,E53,E70,E87,E104) -> 471012.0936 | F111: 1024828.919 | G111: 1691159.95 | H111: 2640422.753 | I111: 2597925.208 | J111: 2554965.226 | K111: 2447213.427 | L111: 2341108.261 | M111: 2236649.179 | N111: 2132190.097 | O111: =SUM(O19,O36,O53,O70,O87,O104) -> 2027731.014 | P111: =SUM(P19,P36,P53,P70,P87,P104) -> 1923271.932 | Q111: 1818812.85 | R111: 1714353.768 | S111: 1609894.685 | T111: 1505435.603 | U111: =SUM(U19,U36,U53,U70,U87,U104) -> 1400976.521
B113: For PILs Calculation
D114: =D6 -> 2010 | E114: =E6 -> 2011 | F114: 2012 | G114: 2013 | H114: 2014 | I114: 2015 | J114: 2016 | K114: 2017 | L114: 2018 | M114: 2019 | N114: 2020 | O114: =O91 -> 2021 | P114: =P91 -> 2022 | Q114: 2023 | R114: 2024 | S114: 2025 | T114: 2026 | U114: =U91 -> 2027
B115: UCC / Class 47
B117: Opening UCC | D117: 0 | E117: =D125 -> 78052.8 | F117: 398847.936 | G117: 916891.2606 | H117: 1553625.715 | I117: 2428456.4 | J117: 2307604.566 | K117: 2122996.201 | L117: 1953156.505 | M117: 1796903.985 | N117: 1653151.666 | O117: 1520899.533 | P117: =O125 -> 1399227.57 | Q117: =P125 -> 1287289.364 | R117: =Q125 -> 1184306.215 | S117: =R125 -> 1089561.718 | T117: =S125 -> 1002396.781 | U117: 922205.0381
B118: Capital Additions | D118: 81305 | E118: 340666 | F118: 572865.7911 | G118: 739672.6614 | H118: 1040750.773 | I118: 76484.04
B119: UCC Before Half Year Rule | D119: =SUM(D117:D118) -> 81305 | E119: 418718.8 | F119: 971713.7271 | G119: 1656563.922 | H119: 2594376.488 | I119: 2504940.44 | J119: =SUM(J117:J118) -> 2307604.566 | K119: 2122996.201 | L119: 1953156.505 | M119: 1796903.985 | N119: 1653151.666 | O119: 1520899.533 | P119: =SUM(P117:P118) -> 1399227.57 | Q119: 1287289.364 | R119: 1184306.215 | S119: 1089561.718 | T119: 1002396.781 | U119: =SUM(U117:U118) -> 922205.0381
B120: Half Year Rule (1/2 Additions - Disposals) | D120: =D118/2 -> 40652.5 | E120: 170333 | F120: 286432.8956 | G120: 369836.3307 | H120: 520375.3867 | I120: 38242.02 | J120: =J118/2 -> 0 | K120: 0 | L120: 0 | M120: 0 | N120: 0 | O120: 0 | P120: =P118/2 -> 0 | Q120: 0 | R120: 0 | S120: 0 | T120: 0 | U120: =U118/2 -> 0
B121: Reduced UCC | D121: =D119-D120 -> 40652.5 | E121: 248385.8 | F121: 685280.8316 | G121: 1286727.591 | H121: 2074001.101 | I121: 2466698.42 | J121: =J119-J120 -> 2307604.566 | K121: 2122996.201 | L121: 1953156.505 | M121: 1796903.985 | N121: 1653151.666 | O121: 1520899.533 | P121: =P119-P120 -> 1399227.57 | Q121: 1287289.364 | R121: 1184306.215 | S121: 1089561.718 | T121: 1002396.781 | U121: =U119-U120 -> 922205.0381
B122: CCA Rate Class | C122: 47
B123: CCA Rate | C123: 0.08 | D123: =$C$123 -> 0.08 | E123: 0.08 | F123: 0.08 | G123: 0.08 | H123: 0.08 | I123: 0.08 | J123: 0.08 | K123: 0.08 | L123: 0.08 | M123: 0.08 | N123: 0.08 | O123: 0.08 | P123: 0.08 | Q123: 0.08 | R123: 0.08 | S123: 0.08 | T123: 0.08 | U123: 0.08
B124: CCA | D124: =D121*$C$123 -> 3252.2 | E124: 19870.864 | F124: 54822.46653 | G124: 102938.2073 | H124: 165920.0881 | I124: 197335.8736 | J124: =J121*$C$123 -> 184608.3653 | K124: 169839.6961 | L124: 156252.5204 | M124: 143752.3188 | N124: 132252.1333 | O124: 121671.9626 | P124: =P121*$C$123 -> 111938.2056 | Q124: 102983.1492 | R124: 94744.49722 | S124: 87164.93744 | T124: 80191.74245 | U124: =U121*$C$123 -> 73776.40305
B125: Closing UCC | D125: =D119-D124 -> 78052.8 | E125: 398847.936 | F125: 916891.2606 | G125: 1553625.715 | H125: 2428456.4 | I125: 2307604.566 | J125: =J119-J124 -> 2122996.201 | K125: 1953156.505 | L125: 1796903.985 | M125: 1653151.666 | N125: 1520899.533 | O125: 1399227.57 | P125: =P119-P124 -> 1287289.364 | Q125: 1184306.215 | R125: 1089561.718 | S125: 1002396.781 | T125: 922205.0381 | U125: =U119-U124 -> 848428.6351
B128: UCC / Class 12 | D128: =D23 -> 2010 | E128: =E23 -> 2011 | F128: 2012 | G128: 2013 | H128: 2014 | I128: 2015 | J128: 2016 | K128: 2017 | L128: 2018 | M128: 2019 | N128: 2020 | O128: =O114 -> 2021 | P128: =P114 -> 2022 | Q128: 2023 | R128: 2024 | S128: 2025 | T128: 2026 | U128: =U114 -> 2027
B131: Opening UCC | D131: 0 | E131: =D139 -> 397.5 | F131: 35281.5 | G131: 15541.63443 | H131: 0 | I131: 6585.4332 | J131: 0 | K131: 0 | L131: 0 | M131: 0 | N131: 0 | O131: 0 | P131: =O139 -> 0 | Q131: =P139 -> 0 | R131: =Q139 -> 0 | S131: =R139 -> 0 | T131: =S139 -> 0 | U131: 0
B132: Capital Additions | D132: 795 | E132: 70563 | F132: 31083.26887 | G132: 0 | H132: 13170.8664 | I132: 0
B133: UCC Before Half Year Rule | D133: =SUM(D131:D132) -> 795 | E133: 70960.5 | F133: 66364.76887 | G133: 15541.63443 | H133: 13170.8664 | I133: 6585.4332 | J133: =SUM(J131:J132) -> 0 | K133: 0 | L133: 0 | M133: 0 | N133: 0 | O133: 0 | P133: =SUM(P131:P132) -> 0 | Q133: 0 | R133: 0 | S133: 0 | T133: 0 | U133: =SUM(U131:U132) -> 0
B134: Half Year Rule (1/2 Additions - Disposals) | D134: =D132/2 -> 397.5 | E134: 35281.5 | F134: =F132/2 -> 15541.63443 | G134: 0 | H134: 6585.4332 | I134: 0 | J134: =J132/2 -> 0 | K134: 0 | L134: 0 | M134: 0 | N134: 0 | O134: 0 | P134: =P132/2 -> 0 | Q134: 0 | R134: 0 | S134: 0 | T134: 0 | U134: =U132/2 -> 0
B135: Reduced UCC | D135: =D133-D134 -> 397.5 | E135: 35679 | F135: 50823.13443 | G135: 15541.63443 | H135: 6585.4332 | I135: 6585.4332 | J135: =J133-J134 -> 0 | K135: 0 | L135: 0 | M135: 0 | N135: 0 | O135: 0 | P135: =P133-P134 -> 0 | Q135: 0 | R135: 0 | S135: 0 | T135: 0 | U135: =U133-U134 -> 0
B136: CCA Rate Class | C136: 12
B137: CCA Rate | C137: 1 | D137: =$C$137 -> 1 | E137: 1 | F137: 1 | G137: 1 | H137: 1 | I137: 1 | J137: 1 | K137: 1 | L137: 1 | M137: 1 | N137: 1 | O137: 1 | P137: 1 | Q137: 1 | R137: 1 | S137: 1 | T137: 1 | U137: 1
B138: CCA | D138: =D135*$C$137 -> 397.5 | E138: 35679 | F138: 50823.13443 | G138: 15541.63443 | H138: 6585.4332 | I138: 6585.4332 | J138: =J135*$C$137 -> 0 | K138: 0 | L138: 0 | M138: 0 | N138: 0 | O138: 0 | P138: =P135*$C$137 -> 0 | Q138: 0 | R138: 0 | S138: 0 | T138: 0 | U138: =U135*$C$137 -> 0
B139: Closing UCC | D139: =D133-D138 -> 397.5 | E139: 35281.5 | F139: 15541.63443 | G139: 0 | H139: 6585.4332 | I139: 0 | J139: =J133-J138 -> 0 | K139: 0 | L139: 0 | M139: 0 | N139: 0 | O139: 0 | P139: =P133-P138 -> 0 | Q139: 0 | R139: 0 | S139: 0 | T139: 0 | U139: =U133-U138 -> 0
B141: Totals
B142: Additions | D142: =+D118+D132 -> 82100 | E142: 411229 | F142: 603949.06 | G142: 739672.6614 | H142: 1053921.64 | I142: 76484.04 | J142: 0 | K142: 0 | L142: 0 | M142: 0 | N142: 0 | O142: =+O118+O132 -> 0 | P142: =+P118+P132 -> 0 | Q142: 0 | R142: 0 | S142: 0 | T142: 0 | U142: =+U118+U132 -> 0
B143: CCA | D143: =+D124+D138 -> 3649.7 | E143: 55549.864 | F143: 105645.601 | G143: 118479.8417 | H143: 172505.5213 | I143: 203921.3068 | J143: 184608.3653 | K143: 169839.6961 | L143: 156252.5204 | M143: 143752.3188 | N143: 132252.1333 | O143: =+O124+O138 -> 121671.9626 | P143: =+P124+P138 -> 111938.2056 | Q143: 102983.1492 | R143: 94744.49722 | S143: 87164.93744 | T143: 80191.74245 | U143: =+U124+U138 -> 73776.40305
B146: Summary for Fixed Assets Schedule | D146: =D128 -> 2010 | E146: =E128 -> 2011 | F146: 2012 | G146: 2013 | H146: 2014 | I146: 2015 | J146: 2016 | K146: 2017 | L146: 2018 | M146: 2019 | N146: 2020
B147: =B11 -> Closing Capital Investment | D147: =D11+D28+D45+D62+D79+D96 -> 82100 | E147: =E11+E28+E45+E62+E79+E96 -> 493329 | F147: 1097278.06 | G147: 1836950.721 | H147: 2890872.361 | I147: 2967356.401 | J147: 3034358.661 | K147: 3034358.661 | L147: 3034358.661 | M147: 3034358.661 | N147: 3034358.661
B148: Accumulated Amortization | D148: =D16+D33+D50+D101+D84+D67 -> 1980.683333 | E148: =E16+E33+E50+E101+E84+E67 -> 22316.90639 | F148: 72449.14095 | G148: =G16+G33+G50+G101+G84+G67 -> 145790.7717 | H148: 250449.6081 | I148: 369431.1929 | J148: 479393.4352 | K148: 587145.234 | L148: 693250.4003 | M148: 797709.4825 | N148: 902168.5647
B149: Amortization Expense | D149: =D14+D15+D31+D32+D48+D49+D65+D66+D82+D83+D99+D100 -> 1980.683333 | E149: =E14+E15+E31+E32+E48+E49+E65+E66+E82+E83+E99+E100 -> 20336.22306 | F149: 50132.23456 | G149: 73341.63072 | H149: 104658.8364 | I149: 118981.5848 | J149: 109962.2423 | K149: 107751.7988 | L149: 106105.1663 | M149: 104459.0822 | N149: =N14+N15+N31+N32+N48+N49+N65+N66+N82+N83+N99+N100 -> 104459.0822
B152: Amortization Expense Breakdown
B153: 5705 | C153: 1818 | D153: =SUM(D14:D15) -> 382.8 | E153: =SUM(E14:E15) -> 2447.9625 | F153: 7896.633048 | G153: 16896.67821 | H153: 27519.84903 | I153: 32909.28275 | J153: 32909.28275 | K153: 32909.28275 | L153: 32909.28275 | M153: 32909.28275 | N153: 32909.28275
B154: 5705 | C154: 1822 | D154: =SUM(D65:D66) -> 572.575 | E154: =SUM(E65:E66) -> 3339.25 | F154: 7217.852981 | G154: 9535.653146 | H154: 15953.06837 | I154: 23649.28741 | J154: 27236.44491 | K154: 28911.50141 | L154: 28911.50141 | M154: 28911.50141 | N154: 28911.50141
B155: 5705 | C155: 1845 | D155: =SUM(D99:D100) -> 0 | E155: =SUM(E99:E100) -> 111.0222222 | F155: 1582.593841 | G155: 5421.898364 | H155: 9403.109203 | I155: 10905.56492 | J155: 10905.56492 | K155: 10905.56492 | L155: 10905.56492 | M155: 10905.56492 | N155: 10905.56492
B156: 5705 | C156: 1912 | D156: =SUM(D82:D83) -> 0 | E156: =SUM(E82:E83) -> 18.73 | F156: 37.46 | G156: 455.7499275 | H156: 1257.07378 | I156: 1640.107705 | J156: 1640.107705 | K156: 1640.107705 | L156: 1640.107705 | M156: 1640.107705 | N156: 1640.107705
B157: 5705 | C157: 1981 | D157: =SUM(D48:D49) -> 925.9333333 | E157: =SUM(E48:E49) -> 5400.133333 | F157: 11672.78608 | G157: 15421.33386 | H157: 23269.06049 | I157: 30092.62543 | J157: 30092.62543 | K157: 30092.62543 | L157: 30092.62543 | M157: 30092.62543 | N157: 30092.62543
B158: 5715 | C158: 1925 | D158: =SUM(D31:D32) -> 99.375 | E158: =SUM(E31:E32) -> 9019.125 | F158: 21724.90861 | G158: 25610.31722 | H158: 27256.67552 | I158: 19784.7166 | J158: 7178.2166 | K158: 3292.7166 | L158: 1646.084124 | M158: 0 | N158: 0
D159: =SUM(D153:D158) -> 1980.683333 | E159: =SUM(E153:E158) -> 20336.22306 | F159: 50132.23456 | G159: 73341.63072 | H159: 104658.8364 | I159: 118981.5848 | J159: 109962.2423 | K159: 107751.7988 | L159: 106105.1663 | M159: 104459.0822 | N159: 104459.0822
C160: check | D160: =D159-D149 -> 0 | E160: =E159-E149 -> 0 | F160: 0 | G160: 0 | H160: 0 | I160: 0 | J160: 0 | K160: 0 | L160: 0 | M160: 0 | N160: 0
